[Event "Chinese League Division-A 2024"]
[Site "Fuling Chongqing"]
[Date "2024.07.02"]
[Round "6.12"]
[White "Zeng, Chongsheng"]
[Black "Dai, Changren"]
[Result "0-1"]
[ECO "A03"]
[WhiteElo "2578"]
[BlackElo "2502"]
[Annotator "TA"]
[PlyCount "94"]
[EventDate "2024.06.28"]
[EventType "team-tourn"]
[EventCountry "CHN"]
[SourceTitle "playchess.com"]
[Source "ChessBase"]
[SourceQuality "1"]
[TimeControl "40/5400+30:1800+30"]

{[%evp 9,94,0,11,8,-1,0,-9,-9,0,-13,0,0,-6,-2,-1,-14,45,54,39,40,34,6,11,-25,-25,-35,-35,-93,-81,-111,-83,-125,-139,-162,-151,-149,-156,-162,-143,-168,-182,-195,-189,-183,-194,-197,-179,-288,-312,-313,-289,-376,-375,-376,-342,-488,-479,-493,-487,-511,-501,-547,-533,-809,-839,-849,-836,-934,-733,-1385,-1358,-2401,-2339,-2164,-1937,-29988,-29989,-29989,-29989,-29989,-29981,-29988,-29989,-29989,-29986,-29984,-29985]} 1. d3 {[%emt 0:00:03]} d5 {[%emt 0:03:51]} 2. f4 {[%emt 0:00:41]} Nf6 {[%emt 0:01:05]} 3. Nf3 {[%emt 0:00:15]} Bg4 {[%emt 0:01:11]} 4. Ne5 {[%emt 0:02:10]} Bf5 {[%emt 0:00:09]} 5. e3 {[%emt 0:01:34]} h5 {[%emt 0:02:31]} 6. Nd2 {[%emt 0:01:31]} e6 {[%emt 0:01:37]} 7. Qe2 {[%emt 0:01:48]} Nbd7 {[%emt 0:03:17]} (7... Ng4 {feels hotter.} 8. e4 Bc5 9. exf5 Bf2+) 8. Nef3 {[%emt 0:02:12] The position is equal.} Bc5 {[%emt 0:09:12]} 9. g3 {[%emt 0:10:16]} Bb6 {[%emt 0:06:04]} 10. Bg2 {[%emt 0:01:27]} Qe7 {[%emt 0:01:42]} 11. a4 {[%emt 0:08:42]} a6 {[%emt 0:02:20]} 12. e4 {[%emt 0:00:26]} Bh7 {[%emt 0:09:06]} ({Black should play} 12... dxe4 $11 13. dxe4 Bg6) 13. Ng5 $14 {[%emt 0:10:34]} Bg6 {[%emt 0:01:23]} 14. h3 {[%emt 0:16:03] Repels Ng4} c6 {[%emt 0:08:18]} 15. Rf1 {[%emt 0:09:35]} O-O-O {[%emt 0:12:21]} 16. exd5 {[%emt 0:02:24]} Nxd5 {[%emt 0:00:14]} 17. Bxd5 {[%emt 0:01:55]} cxd5 {[%emt 0:00:07]} 18. Nb3 {[%emt 0:03:24]} (18. Ndf3 $15) 18... f6 $17 {[%emt 0:04:30] Black continues to play with concentration.} 19. Nf3 {[%emt 0:04:21]} Nc5 {[%emt 0:02:48] Black is more active.} 20. Nbd4 {[%emt 0:03:45]} Rhe8 {[%emt 0:01:24]} 21. Kd1 {[%emt 0:05:15]} Qd7 {[%emt 0:07:55]} (21... e5 22. Nh4 Bf7 (22... exd4 23. Qxe7 Rxe7 24. Nxg6 $16) 23. fxe5 $15) 22. a5 {[%emt 0:00:19]} Bc7 {[%emt 0:02:59] Strongly threatening ...e5.} 23. Nh4 {[%emt 0:01:50] [#]} Bf7 {[%emt 0:00:54]} 24. Qf2 {[%emt 0:00:07]} Bg8 {[%emt 0:02:25]} 25. Ne2 {[%emt 0:04:32] [#]} Ne4 {[%emt 0:01:34][%mdl 512]} 26. Qg1 {[%emt 0:02:02]} (26. Qa7 Nd6) 26... Nd6 {[%emt 0:00:45]} ({Resist} 26... g5 27. Nf3 $17) 27. Nf3 {[%emt 0:01:18]} Kb8 {[%emt 0:00:08][%cal Od5d4]} 28. Be3 {[%emt 0:00:28]} (28. g4 $142) 28... e5 $19 {[%emt 0:00:22]} 29. fxe5 {[%emt 0:01:23]} fxe5 {[%emt 0:00:02][%cal Od5d4]} 30. Ba7+ {[%emt 0:00:20]} Ka8 {[%emt 0:00:01][%cal Od5d4]} 31. Bb6 {[%emt 0:00:36]} Rc8 {[%emt 0:00:01]} 32. Bxc7 {[%emt 0:04:16]} (32. b3 $142) 32... Qxc7 {[%emt 0:00:03]} ({Weaker is} 32... Rxc7 33. g4 $19) 33. Ne1 {[%emt 0:00:13]} d4 {[%emt 0:01:25]} 34. g4 {[%emt 0:00:26]} h4 {[%emt 0:00:06]} 35. Qf2 {[%emt 0:00:54]} Qc5 {[%emt 0:01:21] And now ...e4 would win.} 36. Qxh4 {[%emt 0:00:46]} e4 {[%emt 0:00:17] ...exd3 would now be deadly.} 37. Rc1 {[%emt 0:00:20]} Qxa5 {[%emt 0:01:04] White must now prevent ...exd3.} 38. Nxd4 {[%emt 0:00:45]} exd3 {[%emt 0:00:17]} 39. Nxd3 {[%emt 0:00:09]} Nc4 {[%emt 0:00:13]} 40. c3 {[%emt 0:00:00]} Qa4+ {[%emt 0:00:00]} 41. b3 {[%emt 0:05:32]} Ne3+ {[%emt 0:01:26]} 42. Kd2 {[%emt 0:00:20]} Qa2+ {[%emt 0:00:08] Black mates.} 43. Nc2 {[%emt 0:00:05]} Nxf1+ {[%emt 0:00:25]} 44. Rxf1 {[%emt 0:00:06]} Bxb3 {[%emt 0:00:07][%csl Gb3][%cal Ra2c2]} 45. Ndb4 {[%emt 0:00:11]} Qb2 {[%emt 0:00:10]} 46. Rf3 {[%emt 0:00:46]} Bxc2 {[%emt 0:00:25]} 47. Nxc2 {[%emt 0:00:01]} Red8+ {[%emt 0:00:10] Weighted Error Value: White=0.69/Black=0.09 (flawless) .  Mistake:       	White=3     	Black=1      Inaccurate:     	White=6     	---        OK:         	White=8     	Black=21     Best:        	White=1     	Black=1} 0-1

[Event "Chinese League Division-A 2024"]
[Site "Fuling Chongqing"]
[Date "2024.07.02"]
[Round "6.13"]
[White "Chu, Wei Chao"]
[Black "Liu, Yan"]
[Result "1/2-1/2"]
[ECO "E36"]
[WhiteElo "2412"]
[BlackElo "2573"]
[Annotator "TA"]
[PlyCount "73"]
[EventDate "2024.06.28"]
[EventType "team-tourn"]
[EventCountry "CHN"]
[SourceTitle "playchess.com"]
[Source "ChessBase"]
[SourceQuality "1"]
[TimeControl "40/5400+30:1800+30"]

{[%evp 12,73,21,17,18,11,0,4,0,0,0,0,34,23,34,32,28,25,20,19,20,18,31,24,21,3,4,6,8,7,0,0,0,0,0,0,0,0,7,0,0,0,5,0,0,0,0,0,0,0,0,0,0,0,0,0,0,0,0,0,0,0,0,0]} 1. d4 {[%emt 0:00:03]} Nf6 {[%emt 0:00:16]} 2. c4 {[%emt 0:00:17]} e6 {[%emt 0:00:46]} 3. Nc3 {[%emt 0:01:02]} Bb4 {[%emt 0:01:02]} 4. Qc2 {[%emt 0:01:11]} O-O {[%emt 0:02:45]} 5. a3 {[%emt 0:01:47]} Bxc3+ {[%emt 0:00:11]} 6. Qxc3 {[%emt 0:00:05]} d5 {[%emt 0:02:21]} 7. Bg5 {[%emt 0:03:52]} dxc4 {[%emt 0:01:04]} 8. Qxc4 {[%emt 0:00:08]} b6 {[%emt 0:00:47]} 9. Rd1 {[%emt 0:04:09]} Ba6 {[%emt 0:02:40]} 10. Qa4 {[%emt 0:02:53]} h6 {[%emt 0:02:42]} 11. Bh4 {[%emt 0:00:55]} Qd7 {[%emt 0:07:32]} 12. Qc2 {[%emt 0:05:37]} Qc6 {[%emt 0:00:31]} 13. Qxc6 {[%emt 0:03:40]} Nxc6 {[%emt 0:00:09]} 14. Bxf6 {[%emt 0:00:07]} gxf6 {[%emt 0:00:08]} 15. e3 {[%emt 0:00:26]} Bxf1 {[%emt 0:02:32]} 16. Kxf1 {[%emt 0:00:07]} Na5 {[%emt 0:01:28]} 17. Nf3 {[%emt 0:03:03]} c5 {[%emt 0:02:22]} 18. dxc5 {[%emt 0:02:31] The position is equal.} bxc5 {[%emt 0:00:09]} 19. Rc1 {[%emt 0:01:12]} c4 {[%emt 0:03:21]} 20. g4 {[%emt 0:02:31]} Rab8 {[%emt 0:01:24]} 21. Rc2 {[%emt 0:00:08]} Rb6 {[%emt 0:01:15]} 22. Kg2 {[%emt 0:03:08]} Rfb8 {[%emt 0:00:17]} 23. Rb1 {[%emt 0:00:07]} Kg7 {[%emt 0:01:37]} 24. Nd2 {[%emt 0:02:29]} h5 {[%emt 0:01:32]} 25. h3 {[%emt 0:01:19]} (25. Nxc4 $2 Rc6 26. gxh5 (26. Rbc1 $2 Rbc8 $19) 26... Rxc4 $19 (26... Nxc4 $2 27. Rbc1 $19)) 25... hxg4 {[%emt 0:00:25]} 26. hxg4 {[%emt 0:00:06]} Kg6 {[%emt 0:01:05]} 27. Nxc4 {[%emt 0:01:26]} Rc6 $1 {[%emt 0:00:54]} 28. Rbc1 {[%emt 0:00:17]} Rbc8 {[%emt 0:00:30]} 29. b3 {[%emt 0:00:37]} Kg7 {[%emt 0:00:56]} (29... Nxb3 $2 {is the wrong capture.} 30. Ne5+ fxe5 31. Rxc6 $18) 30. Rb2 {[%emt 0:01:37]} Nxc4 {[%emt 0:00:18]} 31. bxc4 {[%emt 0:00:07]} Rxc4 {[%emt 0:00:07]} 32. Rxc4 {[%emt 0:00:06]} Rxc4 $11 {[%emt 0:00:06] KR-KR} 33. Rb4 {[%emt 0:00:17]} Rc5 {[%emt 0:00:14]} 34. Ra4 {[%emt 0:00:05]} a5 {[%emt 0:00:08]} 35. Rd4 {[%emt 0:00:05]} Rc3 {[%emt 0:00:06]} 36. Ra4 {[%emt 0:00:03]} Rc5 {[%emt 0:00:07]} 37. Rd4 {[%emt 0:00:38] Weighted Error Value: White=0.02 (flawless) /Black=0.03 (flawless) .  Inaccurate:     	---       	Black=1      OK:         	White=10    	Black=13     Best:        	White=2     	Black=1      Strong:       	---       	Black=1} 1/2-1/2

[Event "Chinese League Division-A 2024"]
[Site "Fuling Chongqing"]
[Date "2024.07.02"]
[Round "6.14"]
[White "Huang, Qian"]
[Black "Xiao, Yiyi"]
[Result "1/2-1/2"]
[ECO "A14"]
[WhiteElo "2396"]
[BlackElo "2338"]
[Annotator "TA"]
[PlyCount "61"]
[EventDate "2024.06.28"]
[EventType "team-tourn"]
[EventCountry "CHN"]
[SourceTitle "playchess.com"]
[Source "ChessBase"]
[SourceQuality "1"]
[TimeControl "40/5400+30:1800+30"]

{[%evp 18,61,22,19,17,17,14,15,20,16,15,23,33,10,10,0,0,0,12,6,18,25,10,12,18,0,0,0,0,0,0,0,0,0,0,0,0,0,4,4,4,4,10,5,12,6]} 1. c4 {[%emt 0:00:22]} e6 {[%emt 0:01:07]} 2. g3 {[%emt 0:03:34]} d5 {[%emt 0:00:16]} 3. Bg2 {[%emt 0:00:09]} Nf6 {[%emt 0:01:04]} 4. Nf3 {[%emt 0:00:22]} Be7 {[%emt 0:02:17]} 5. O-O {[%emt 0:07:47]} O-O {[%emt 0:00:52]} 6. b3 {[%emt 0:00:08]} c5 {[%emt 0:03:26]} 7. cxd5 {[%emt 0:02:13]} Nxd5 {[%emt 0:06:26]} 8. d4 {[%emt 0:02:34]} Nc6 {[%emt 0:01:26]} 9. Bb2 {[%emt 0:00:09]} cxd4 {[%emt 0:02:12]} 10. Nxd4 {[%emt 0:00:10]} Bd7 {[%emt 0:00:20]} 11. Na3 {[%emt 0:12:04][%cal Bb1a3,Ba3c4,Bc4a5][%mdl 32]} Bf6 {[%emt 0:04:21]} 12. Qd2 {[%emt 0:02:05]} Nxd4 {[%emt 0:01:53]} 13. Bxd4 {[%emt 0:00:08]} Bc6 {[%emt 0:00:06]} 14. Rfd1 {[%emt 0:03:55]} Qe7 {[%emt 0:04:50] [#] ...Bxd4 is the strong threat.} 15. Nc4 {[%emt 0:01:46]} Rfd8 {[%emt 0:00:31]} 16. Na5 {[%emt 0:03:20]} Bxd4 {[%emt 0:06:25]} 17. Qxd4 {[%emt 0:00:07]} Be8 {[%emt 0:00:34]} (17... Bb5 $5) 18. Qe5 {[%emt 0:01:47][%cal Rg2d5]} Rac8 {[%emt 0:09:38][%cal Ba8c8,Bc8c5,Bc5d5][%mdl 32]} 19. Rxd5 {[%emt 0:04:25]} Rxd5 {[%emt 0:00:44]} 20. Bxd5 {[%emt 0:00:06] The position is equal.} Rc5 {[%emt 0:00:17]} 21. Nc4 {[%emt 0:00:33] [#] Hoping for Ne3.} (21. Nxb7 $2 Rxd5 22. Qb8 Rb5 23. Qxa7 Qxb7 (23... Rxb7 $2 24. Qa8 $19) 24. Qxb7 Rxb7 $19) (21. Qb8 $5 exd5 22. b4 $11 (22. Qxa7 Rc2 $11) (22. Nxb7 $2 Rb5 $19)) 21... Rxd5 {[%emt 0:00:13]} 22. Qb8 {[%emt 0:00:22]} b6 {[%emt 0:01:35]} 23. Rc1 {[%emt 0:00:22]} Qd8 {[%emt 0:02:22]} 24. Qxd8 {[%emt 0:00:48]} (24. Qxa7 $2 {loses.} Rd1+ 25. Rxd1 Qxd1+ 26. Kg2 Bc6+ (26... Qxe2 $2 {perishes.} 27. Qa8 $18) 27. f3 (27. Kh3 $2 Qf1+ 28. Kh4 h6 $19) 27... Qxe2+ 28. Kg1 Qd1+ (28... Bxf3 29. Qb8#) 29. Kf2 Qxf3+ (29... Bxf3 30. Qb8+) 30. Ke1 Qh1+ 31. Kd2 Qxh2+ 32. Kc3 Qxg3+ 33. Kb4 h5 34. Qxb6 Bd5 35. Qd8+ Kh7 $19) 24... Rxd8 $11 {[%emt 0:00:06][%mdl 4096] Endgame. KRB-KRN} 25. f3 {[%emt 0:00:13]} Kf8 {[%emt 0:00:24]} 26. Kf2 {[%emt 0:00:09]} Ke7 {[%emt 0:00:51]} 27. Ke3 {[%emt 0:03:31]} Bb5 {[%emt 0:01:36]} 28. a4 {[%emt 0:00:08]} Bxc4 {[%emt 0:00:18]} 29. Rxc4 {[%emt 0:00:03]} Rd7 {[%emt 0:00:06]} 30. Rc8 {[%emt 0:00:11]} f6 {[%emt 0:00:18]} 31. h4 {[%emt 0:00:14] A balanced but interesting game.   Weighted Error Value: White=0.04 (flawless) /Black=0.03 (flawless) .  OK:         	White=8     	Black=6      Best:        	---       	Black=2} 1/2-1/2

[Event "Chinese League Division-A 2024"]
[Site "Fuling Chongqing"]
[Date "2024.07.02"]
[Round "6.15"]
[White "Jiang, Tianyu"]
[Black "Wang, Chuqiao"]
[Result "1/2-1/2"]
[ECO "C93"]
[WhiteElo "1995"]
[BlackElo "2278"]
[Annotator "RC"]
[PlyCount "67"]
[EventDate "2024.06.28"]
[EventType "team-tourn"]
[EventCountry "CHN"]
[SourceTitle "playchess.com"]
[Source "ChessBase"]
[SourceQuality "1"]
[TimeControl "40/5400+30:1800+30"]

1. e4 {[%emt 0:00:04]} e5 {[%emt 0:00:07]} 2. Nf3 {[%emt 0:00:07]} Nc6 {[%emt 0:00:08]} 3. Bb5 {[%emt 0:00:57]} a6 {[%emt 0:00:16]} 4. Ba4 {[%emt 0:00:06]} Nf6 {[%emt 0:00:31]} 5. O-O {[%emt 0:00:40]} Be7 {[%emt 0:00:51]} 6. Re1 {[%emt 0:00:52]} b5 {[%emt 0:00:20]} 7. Bb3 {[%emt 0:00:05]} d6 {[%emt 0:00:25]} 8. c3 {[%emt 0:00:25]} O-O {[%emt 0:00:23]} 9. h3 {[%emt 0:00:39]} Re8 {[%emt 0:01:20]} 10. d4 {[%emt 0:02:46]} Bb7 {[%emt 0:00:44]} 11. Ng5 {[%emt 0:01:55]} Rf8 {[%emt 0:01:07]} 12. Nf3 {[%emt 0:01:30]} Re8 {[%emt 0:01:54]} 13. Nbd2 {[%emt 0:04:58]} Bf8 {[%emt 0:02:06]} 14. a3 {[%emt 0:02:24]} h6 {[%emt 0:04:48]} 15. Bc2 {[%emt 0:01:22]} Nb8 {[%emt 0:04:47]} 16. b3 {[%emt 0:05:53]} Nbd7 {[%emt 0:03:04]} 17. Bb2 {[%emt 0:01:09]} g6 {[%emt 0:05:21]} 18. Bd3 {[%emt 0:11:26]} Bg7 {[%emt 0:08:01]} 19. dxe5 {[%emt 0:10:31]} Nxe5 {[%emt 0:05:10]} 20. Nxe5 {[%emt 0:03:58]} dxe5 {[%emt 0:00:17]} 21. Qc2 {[%emt 0:01:11]} Qd6 {[%emt 0:07:34]} 22. Rad1 {[%emt 0:05:30]} Rad8 {[%emt 0:02:29]} 23. Nf3 {[%emt 0:04:44]} Qc6 {[%emt 0:04:25]} 24. c4 {[%emt 0:08:49]} bxc4 {[%emt 0:00:55]} 25. Qxc4 {[%emt 0:00:36]} Qxc4 {[%emt 0:00:37]} 26. Bxc4 {[%emt 0:00:43]} Rxd1 {[%emt 0:02:02]} 27. Rxd1 {[%emt 0:00:09]} Nxe4 {[%emt 0:00:21]} 28. Rd7 {[%emt 0:01:41]} Nd6 {[%emt 0:00:26]} 29. Rxc7 {[%emt 0:00:25]} Nxc4 {[%emt 0:00:36]} 30. bxc4 {[%emt 0:01:02]} Bxf3 {[%emt 0:00:27]} 31. gxf3 {[%emt 0:00:05]} e4 {[%emt 0:00:16]} 32. Bxg7 {[%emt 0:00:44]} Kxg7 {[%emt 0:00:05]} 33. fxe4 {[%emt 0:00:10]} Rxe4 {[%emt 0:00:05]} 34. Kg2 {[%emt 0:00:13]} 1/2-1/2

[Event "Chinese League Division-A 2024"]
[Site "Fuling Chongqing"]
[Date "2024.07.02"]
[Round "6.16"]
[White "Wan, Yunguo"]
[Black "Chen, Yuan"]
[Result "1-0"]
[ECO "C42"]
[WhiteElo "2498"]
[BlackElo "2294"]
[Annotator "TA"]
[PlyCount "69"]
[EventDate "2024.06.28"]
[EventType "team-tourn"]
[EventCountry "CHN"]
[SourceTitle "playchess.com"]
[Source "ChessBase"]
[SourceQuality "1"]
[TimeControl "40/5400+30:1800+30"]

{[%evp 22,69,11,17,16,14,12,6,15,14,15,12,17,0,48,0,15,15,32,15,58,76,55,69,61,65,65,0,0,0,0,0,0,0,0,-14,161,155,145,58,58,70,27,0,0,0,607,641,29983,29984]} 1. e4 {[%emt 0:00:07]} e5 {[%emt 0:00:50]} 2. Nf3 {[%emt 0:01:18]} Nf6 {[%emt 0:00:14]} 3. Nxe5 {[%emt 0:04:09]} d6 {[%emt 0:00:06]} 4. Nf3 {[%emt 0:00:23]} Nxe4 {[%emt 0:00:06]} 5. d4 {[%emt 0:03:42]} d5 {[%emt 0:00:16]} 6. Bd3 {[%emt 0:00:08]} Bb4+ {[%emt 0:00:12]} 7. c3 {[%emt 0:02:41]} Bd6 {[%emt 0:00:13]} 8. O-O {[%emt 0:01:08]} O-O {[%emt 0:00:09]} 9. Re1 {[%emt 0:05:37]} Bf5 {[%emt 0:00:27]} 10. c4 {[%emt 0:02:29]} c6 {[%emt 0:00:32]} 11. Nc3 {[%emt 0:03:55]} Nxc3 {[%emt 0:00:13]} 12. bxc3 {[%emt 0:00:05][%cal Bb2c3,Bc3c4,Bc4c5][%mdl 32]} Bxd3 {[%emt 0:00:54]} 13. Qxd3 {[%emt 0:00:07] Threatening Ng5.} dxc4 {[%emt 0:00:15]} 14. Qxc4 {[%emt 0:00:04]} Nd7 {[%emt 0:00:24] The position is equal.} 15. Qd3 {[%emt 0:04:02]} Qa5 {[%emt 0:17:22]} 16. c4 {[%emt 0:02:08]} Rfe8 {[%emt 0:01:02]} 17. Bd2 {[%emt 0:02:43]} Qa4 {[%emt 0:23:47]} (17... Rxe1+ $11 18. Rxe1 Qxa2) 18. Bc3 {[%emt 0:07:26]} (18. c5 $14 {is more appropriate.} Rxe1+ 19. Rxe1) 18... b5 {[%emt 0:19:29][%cal Bb7b5,Bb5b4][%mdl 32]} 19. c5 {[%emt 0:29:56]} Be7 {[%emt 0:04:03][%cal Bd6e7,Be7d8,Bd8c7][%mdl 32]} (19... Bc7 {is more complex.} 20. d5 Nxc5 21. Qf5 Rxe1+ 22. Rxe1 Qf4) 20. Qf5 {[%emt 0:04:26] Against Bf6} Nf6 {[%emt 0:02:04]} 21. Ne5 {[%emt 0:00:13]} b4 {[%emt 0:00:49]} 22. Bb2 {[%emt 0:01:49]} Bd8 {[%emt 0:10:20]} 23. Qf3 $36 {[%emt 0:12:47][%mdl 2048] White has some pressure. White is much more active.} Re6 {[%emt 0:03:55]} 24. g4 {[%emt 0:03:52]} ({White should try} 24. d5 $14 cxd5 25. Nxf7) 24... Bc7 $11 {[%emt 0:02:51]} 25. Nxf7 {[%emt 0:00:20]} Rxe1+ {[%emt 0:09:20]} (25... Kxf7 $2 26. Rxe6 Kxe6 27. g5 $18) 26. Rxe1 {[%emt 0:00:05][%cal Of7h6] Nh6+! would now be deadly.} Rf8 {[%emt 0:02:02][%cal Of6d5] Strongly threatening ...Nd5!} (26... Kxf7 $6 27. g5 Re8 (27... Qxa2 $2 28. gxf6 Qxb2 29. Qxc6 $18) 28. Rxe8 Kxe8 29. gxf6 gxf6 30. Bc1 $18) 27. Ng5 {[%emt 0:04:14]} Qxa2 {[%emt 0:00:08]} 28. Ne6 {[%emt 0:01:40]} Qxb2 $2 {[%emt 0:01:21]} (28... Re8 $1 $11 {and Black stays safe.} 29. Qxc6 Bf4) 29. Nxf8 $18 {[%emt 0:00:28]} Kxf8 {[%emt 0:00:33] [#]} 30. Qe3 {[%emt 0:00:53]} ({White should play} 30. g5 $1 $16 {[%cal Rg5f6]} Qxd4 (30... Qd2 $2 31. Re3 $18) 31. gxf6 Qxf6 32. Qe3 Qg6+ 33. Kf1) 30... Bxh2+ $1 $14 {[%emt 0:01:01]} 31. Kg2 $1 {[%emt 0:00:09] White threatens Qe7+ and mate. Dancing on a razor blade.} h6 $1 {[%emt 0:00:19][%cal Ob2a2]} 32. Qe7+ {[%emt 0:00:57][%mdl 1024] White has compensation.} Kg8 {[%emt 0:00:01][%cal Og8h7]} 33. Qe6+ {[%emt 0:00:08]} Kh8 $2 {[%emt 0:00:46][%mdl 8192] [#]} (33... Kf8 $11) 34. g5 $1 $18 {[%emt 0:00:09][%cal Bg4g5,Bg5f6][%mdl 32]} Qd2 {[%emt 0:00:54]} 35. gxf6 {[%emt 0:00:15] Weighted Error Value: White=0.11 (very precise) /Black=0.51.  Loses game:     	---       	Black=2      Mistake:       	White=3     	Black=1      Inaccurate:     	White=1     	Black=2      OK:         	White=7     	Black=8      Best:        	White=3     	Black=1      Strong:       	White=2     	Black=2} 1-0

[Event "Chinese League Division-A 2024"]
[Site "Fuling Chongqing"]
[Date "2024.07.02"]
[Round "6.17"]
[White "Lu, Shanglei"]
[Black "Nie, Xinyang"]
[Result "1-0"]
[ECO "C00"]
[WhiteElo "2606"]
[BlackElo "2395"]
[Annotator "TA"]
[PlyCount "87"]
[EventDate "2024.06.28"]
[EventType "team-tourn"]
[EventCountry "CHN"]
[SourceTitle "playchess.com"]
[Source "ChessBase"]
[SourceQuality "1"]
[TimeControl "40/5400+30:1800+30"]

{[%evp 23,87,84,102,97,98,103,123,108,96,105,76,103,158,126,133,81,158,164,148,104,112,120,146,141,150,150,151,153,252,263,566,557,701,708,1070,1043,1060,612,580,437,453,458,452,476,467,470,487,482,473,472,602,594,665,688,1357,1481,29977,29978,29978,29979,29979,29980,29980,29981,29981,29981]} 1. e4 {[%emt 0:00:05]} e6 {[%emt 0:00:03]} 2. f4 {[%emt 0:06:16]} d5 {[%emt 0:09:38]} 3. e5 {[%emt 0:00:37]} c5 {[%emt 0:02:12]} 4. Nf3 {[%emt 0:00:04]} Nc6 {[%emt 0:00:18]} 5. c3 {[%emt 0:00:04]} d4 {[%emt 0:00:09]} 6. Bd3 {[%emt 0:00:43] C00: French: Unusual White 2nd moves.} Nge7 {[%emt 0:01:58]} 7. Be4 {[%emt 0:08:21]} Nd5 {[%emt 0:06:04]} 8. d3 {[%emt 0:00:15]} Be7 $146 {[%emt 0:00:28]} ({Predecessor:} 8... f5 9. exf6 Nxf6 10. Bxc6+ bxc6 11. O-O Bd6 12. Na3 O-O 13. Nc4 Bc7 14. Nfe5 Ba6 {½-½ Zylka,S (2410)-Nitish,B (2435) Budapest Vezerkepzo GM-A 11 2022 (3)}) 9. c4 {[%emt 0:02:38]} Nb6 {[%emt 0:02:06]} 10. Bxc6+ {[%emt 0:01:12]} bxc6 {[%emt 0:00:04]} 11. Nbd2 {[%emt 0:00:30]} O-O {[%emt 0:03:50]} 12. Ne4 {[%emt 0:02:21]} f5 {[%emt 0:03:24]} 13. exf6 {[%emt 0:06:11]} gxf6 {[%emt 0:00:05]} 14. O-O {[%emt 0:02:23]} Kh8 {[%emt 0:02:43]} 15. f5 {[%emt 0:04:00]} exf5 {[%emt 0:02:44]} 16. Ng3 {[%emt 0:00:39]} Bd6 {[%emt 0:00:04]} 17. Nh4 {[%emt 0:16:28]} Qc7 {[%emt 0:03:22]} ({Better is} 17... Bxg3 18. hxg3 Rg8) 18. Qh5 {[%emt 0:04:12]} (18. Ngxf5 $6 Bxh2+ 19. Kh1 Bxf5 20. Nxf5 Be5 $14) (18. Nhxf5 $6 Bxf5 19. Rxf5 Rae8 $11) 18... Qf7 {[%emt 0:09:22]} 19. Qh6 {[%emt 0:07:36]} (19. Qf3 $142) 19... Rg8 {[%emt 0:00:51]} (19... Bxg3 $142 20. hxg3 Be6) 20. Bf4 $16 {[%emt 0:00:12]} Bxf4 {[%emt 0:13:18]} 21. Rxf4 {[%emt 0:01:05]} Be6 {[%emt 0:04:13]} 22. Nhxf5 {[%emt 0:05:22]} Bxf5 {[%emt 0:00:28]} 23. Rxf5 {[%emt 0:01:58]} Nd7 {[%emt 0:00:06]} 24. Ne4 {[%emt 0:08:43]} Rae8 {[%emt 0:03:01]} 25. Raf1 {[%emt 0:01:40]} (25. Nxc5 Re2 26. g3 Nxc5 27. Rxc5 Qe7 $14) (25. Nxf6 Rg6 26. Nxe8 Qxf5 $11) 25... Rxe4 {[%emt 0:17:11]} (25... Rg6 $16 26. Qd2 Re5) 26. dxe4 $18 {[%emt 0:00:17]} Qxc4 $2 {[%emt 0:00:03]} (26... Rg6 {is a better chance.} 27. Qf4 Qe6) 27. Rxf6 $18 {[%emt 0:06:12]} d3 {[%emt 0:10:07]} 28. Rf7 {[%emt 0:03:46]} (28. Rxc6 Qd4+ 29. Kh1 Qxe4 $11) 28... Qxe4 {[%emt 0:00:33]} 29. g3 {[%emt 0:00:06]} (29. Rxd7 $2 Qxg2#) 29... Qd4+ {[%emt 0:00:54]} 30. R1f2 {[%emt 0:00:14]} Rg7 {[%emt 0:00:43]} 31. Qxg7+ {[%emt 0:01:02]} Qxg7 {[%emt 0:00:03]} 32. Rxg7 {[%emt 0:00:03]} Kxg7 {[%emt 0:00:02]} 33. Kf1 {[%emt 0:00:10]} Kg6 {[%emt 0:02:43]} 34. Ke1 {[%emt 0:00:26]} Ne5 {[%emt 0:00:30]} 35. Kd2 {[%emt 0:00:47]} c4 {[%emt 0:00:04]} 36. Kc3 {[%emt 0:00:20]} c5 {[%emt 0:00:03]} 37. Rf8 {[%emt 0:00:09]} Ng4 {[%emt 0:00:25]} 38. Ra8 {[%emt 0:06:30]} (38. Kxc4 d2 39. Rd8 (39. Rg8+ $2 Kf5 $19) 39... Ne3+ (39... Nxh2 $2 40. Rxd2 Nf1 41. Rd8 $18) 40. Kxc5 d1=Q (40... d1=R 41. Rxd1 Nxd1 42. b3 $11) 41. Rxd1 Nxd1 $11) 38... Nf6 {[%emt 0:02:56]} 39. Rxa7 {[%emt 0:01:41]} Kf5 {[%emt 0:00:04]} 40. Rf7 {[%emt 0:00:00]} (40. Kxc4 $2 d2 41. Ra5 (41. g4+ $2 Ke6 $19) 41... Nd7 $19 (41... d1=B $2 42. Rxc5+ Ke6 43. b4 $18)) 40... Ke6 {[%emt 0:00:00] [#]} 41. Rxf6+ $1 {[%emt 0:01:04]} Kxf6 {[%emt 0:00:47]} 42. a4 {[%emt 0:00:57]} (42. Kxc4 $2 d2 43. Kxc5 d1=Q $19 (43... d1=B $2 44. b4 $18)) 42... Ke5 {[%emt 0:00:04]} 43. g4 {[%emt 0:00:22]} (43. Kxc4 d2 44. Kxc5 d1=Q (44... d1=B $2 45. a5 $18) 45. h3 Qc2+ (45... Qxa4 46. b4 Qc2+ 47. Kb6 Kd5 48. b5 Qg6+ 49. Kb7 Kc5 50. Kc8 Qf7 51. g4 Kxb5 52. Kd8 Kc6 53. h4 Qf8#) 46. Kb4 Qxb2+ 47. Kc4 Qc2+ 48. Kb5 Kd6 49. Kb4 Kd5 (49... Qc5+ 50. Kb3 Kd5 51. h4 Kd4 52. g4 Qc3+ 53. Ka2 Qb4 54. h5 Kc3 55. h6 Qb2#) 50. h4 Qb2+ (50... Qc5+ 51. Kb3 Kd4 52. h5 Qc3+ 53. Ka2 Qb4 54. h6 Kc3 55. Ka1 Qb2#) 51. Ka5 Kc5 52. h5 Qb6#) (43. a5 Ke4 44. a6 (44. Kxc4 $2 d2 $19) 44... Ke3 $11) 43... Kf4 {[%emt 0:00:19] [#]} 44. Kd2 $1 {[%emt 0:00:07]} (44. Kxc4 $2 {loses.} d2 (44... Kxg4 45. Kxd3 h5 46. a5 Kh3 47. a6 Kxh2 48. a7 Kg3 49. Ke4) 45. Kxc5 d1=Q $19 (45... d1=B $2 46. a5 $18)) 1-0